Cogmind - Beta 13 X1 @@@ ROGUE MODE // 2023.08.15 @ 07:14:07 Player: VR-DUX Result: Destroyed by 0W-YHQ(R) with Subdweller Laser Performance ------------- Evolutions (0) 0 Regions Visited (2) 400 Robots Destroyed (30) 150 Value Destroyed (630) 630 Prototype IDs (0) 0 Alien Tech Used (0) 0 Bonus (0) 0 TOTAL SCORE: 1180 Bonus ------- None Cogmind --------- Core Integrity 0/250 Matter 236/300 Energy 200/200 System Corruption 0% Temperature Cool (6) Movement Treading (160) Location -10/Subcaves Parts ------- > --- POWER (1) -------- Subdweller Power Source > --- PROPULSION (2) --- Light Treads Light Treads > --- UTILITY (2) ------ Large Storage Unit Signal Interpreter > --- WEAPON (2) ------- Assault Rifle Battle Rifle > --- INVENTORY (15) --- Ion Engine Light Treads Light Treads Heat Sink Heat Sink Medium Storage Unit Large Storage Unit Structural Scanner Armor Integrity Analyzer Scrap Shield Medium Laser Peak State ------------ > --- POWER ------------ Ion Engine > --- PROPULSION ------- Improved Aluminum Leg Improved Aluminum Leg > --- UTILITY ---------- Medium Storage Unit Structural Scanner > --- WEAPON ----------- Small Laser Assault Rifle > --- INVENTORY -------- Ion Engine Light Treads Light Treads Light Treads Small Storage Unit Signal Interpreter Power Shielding EM Pulse Gun Assault Rifle Mining Laser [Rating: 10] Favorites ----------- Power Ion Engine Engine Ion Engine Propulsion Light Treads Treads Light Treads Leg Improved Aluminum Leg Utility Signal Interpreter Device Structural Scanner Storage Large Storage Unit Processor Signal Interpreter Weapon Assault Rifle Energy Gun EM Pulse Gun Ballistic Gun Assault Rifle Special Weapon Mining Laser Build | -11 -10 -10 ------- Run | Jun Mat Sub Slots Evolved . | . . . Power . | . . . Propulsion . | . . . Utility . | . . . Weapon . | . . . Parts Attached 23 | 1 17 5 Power 3 | . 2 1 Engine 3 | . 2 1 Core . | . . . Reactor . | . . . Propulsion 6 | . 5 1 Treads 4 | . 3 1 Leg 2 | . 2 . Wheel . | . . . Hover . | . . . Flight . | . . . Utility 6 | 1 5 . Device 2 | 1 1 . Storage 2 | . 2 . Processor 2 | . 2 . Hackware . | . . . Protection . | . . . Artifact . | . . . Weapon 8 | . 5 3 Energy Gun 4 | . 4 . Energy Cannon . | . . . Ballistic Gun 3 | . 1 2 Ballistic Cannon . | . . . Launcher . | . . . Special Weapon 1 | . . 1 Impact Weapon . | . . . Slashing Weapon . | . . . Piercing Weapon . | . . . Special Melee Weapon . | . . . Unidentified Prototypes . | . . . Parts Lost 4 | . 1 3 Power 1 | . 1 . Propulsion 1 | . . 1 Utility . | . . . Weapon 2 | . . 2 Highest Loss Streak 1 | . 1 1 To Critical Strikes . | . . . Average Slot Usage (%) 98 | . 99 97 Engine 13 | . 13 13 Treads 14 | . 9 27 Leg 13 | . 18 . Device 5 | . 7 . Storage 14 | . 14 14 Processor 8 | . 6 14 Energy Gun 11 | . 13 5 Ballistic Gun 13 | . 13 13 Special Weapon 2 | . . 7 Naked Turns . | . . . Heaviest Build 29 | 12 29 29 Greatest Support 40 | 20 40 40 Greatest Overweight (x) 1 | . . 1 Average Overweight (x) . | . . . Largest Inventory Capacity 15 | 8 15 15 Average Capacity 12 | 8 11 15 Most Carried 13 | 8 11 13 Average Carried 9 | 6 8 12 Final Capacity 15 | 8 15 15 Final Carried 12 | 8 11 12 Class Distribution -------------------- 100% | Mutant Dominant Class ---------------- Mutant | -10/Materials Mutant | -10/Subcaves Resources | -11 -10 -10 ----------- Run | Jun Mat Sub Matter Collected 711 | 234 401 76 Remotely . | . . . Salvage Created 1046 | 156 850 40 Parts 69 | 8 59 2 Haulers Intercepted 2 | . 2 . Recyclers Shooed 1 | . 1 . Parts Field Recycled . | . . . Retrieved Matter . | . . . Parts Self-Destructed 9 | . . 9 Prevented . | . . . Kills | -11 -10 -10 ------- Run | Jun Mat Sub Combat Hostiles Destroyed 12 | . 10 2 Guns 10 | . 8 2 AOE 2 | . 2 . Classes Destroyed 9 | 2 6 1 Worker 1 | . 1 . Builder 2 | . 2 . Tunneler 4 | 3 1 . Hauler 2 | . 2 . Recycler 2 | 1 1 . Operator 4 | . 4 . Watcher 3 | . 3 . Grunt 11 | . 10 1 Subdweller 1 | . . 1 Best Kill Streak 4 | 2 4 1 Combat Bots Only 3 | . 3 1 Max Kills in Single Turn 2 | 1 2 1 Gunslinging . | . . . Exploded 1 | . 1 . Melee . | . . . Uniques/NPCs Destroyed . | . . . Combat | -11 -10 -10 -------- Run | Jun Mat Sub Damage Taken 1102 | . 591 511 Core 266 | . 107 159 Absorbed by Shields . | . . . Regen/Repaired (Parts) 82 | . 82 . Core Remaining (%) 100 | 100 . . Volleys Fired 157 | 8 116 33 Largest 2 | 2 2 2 Hottest 100 | 60 60 100 Shots Fired 246 | 16 187 43 Gun 242 | 16 187 39 Cannon . | . . . Launcher . | . . . Special 4 | . . 4 Kinetic 120 | 8 77 35 Thermal 67 | 8 55 4 Explosive . | . . . Electromagnetic 59 | . 55 4 Robot Hit Streak 9 | 5 6 9 Robot Miss Streak 6 | 2 6 1 Penetration Max . | . . . Secondary Targets 2 | . 2 . Max Gunslinging Chain 1 | . 1 . Shots Hit Robots 129 | 10 97 22 Core Hits 51 | 5 43 3 Critical Kills . | . . . Critical Parts Destroyed 1 | . . 1 Critical Strikes 1 | . . 1 Destroy 1 | . . 1 Melee Attacks . | . . . Impact . | . . . Slashing . | . . . Piercing . | . . . Sneak Attacks . | . . . Combat Hostiles . | . . . Follow-up Attacks . | . . . Damage Inflicted 1922 | 130 1557 235 Guns 1710 | 130 1345 235 Cannons . | . . . Explosions 212 | . 212 . Melee . | . . . Ramming . | . . . Kinetic 926 | 61 653 212 Thermal 483 | 69 414 . Explosive . | . . . Electromagnetic 513 | . 490 23 Impact . | . . . Slashing . | . . . Piercing . | . . . Highest Corruption . | . . . Average Corruption . | . . . Corruption Purged . | . . . Corruption Blocked . | . . . Overload Shots . | . . . Overflow Damage . | . . . Projectiles . | . . . Explosions . | . . . Melee . | . . . Knockbacks . | . . . Impact . | . . . Kinetic . | . . . Secondary . | . . . Self-Inflicted Damage . | . . . Shots . | . . . Rammed . | . . . Targets Rammed . | . . . Kicked . | . . . Crushed . | . . . Highest Temperature 150 | . 150 . Average Temperature 48 | . 48 . Received Heat Transfer 414 | . 318 96 Siege Activations . | . . . Robots Corrupted . | . . . Combat Hostiles . | . . . Parts Fried . | . . . Impact Corruptions . | . . . Robots Melted . | . . . Combat Hostiles . | . . . Parts Melted . | . . . Heat Transferred 975 | 150 825 . Parts Sabotaged . | . . . Parts Stolen . | . . . Parts Stripped . | . . . Power Chain Reactions 2 | . 2 . Missiles Intercepted . | . . . Alert | -11 -10 -10 ------- Run | Jun Mat Sub Peak Influence 276 | 20 276 . Initial 13 | . 13 . Average 153 | 10 161 . Maximum Alert Level 1 | . 1 . Low Security (%) 78 | 100 77 . Level 1 21 | . 22 . Level 2 . | . . . Level 3 . | . . . Level 4 . | . . . Level 5 . | . . . High Security . | . . . Max Security . | . . . Squads Dispatched 4 | . 4 . Investigation 1 | . 1 . Extermination . | . . . Reinforcement 3 | . 3 . Assault . | . . . Garrison . | . . . Intercept . | . . . Searches Triggered . | . . . Construction Impeded . | . . . Haulers Reinforced . | . . . Active Scanning Responses . | . . . Cargo Convoy Interrupts . | . . . Stealth | -11 -10 -10 --------- Run | Jun Mat Sub Distress Signals 3 | . 3 . Communications Jammed . | . . . Distress Signals . | . . . Times Spotted 41 | . 35 6 Peak Tracking Total 3 | . 3 2 Tactical Retreats . | . . . Traps | -11 -10 -10 ------- Run | Jun Mat Sub Traps Triggered 1 | . 1 . Indirectly 1 | . 1 . Trap Hack Attempts . | . . . Triggered . | . . . Disarmed . | . . . Reprogrammed . | . . . Reused . | . . . Traps Extracted . | . . . Installed . | . . . Triggered 1 | . 1 . Machines | -11 -10 -10 ---------- Run | Jun Mat Sub Machines Disabled 1 | . 1 . Max in Single Turn 1 | . 1 . Machines Repaired . | . . . Machines Sabotaged . | . . . Overloaded Fab Kills . | . . . Hacking | -11 -10 -10 --------- Run | Jun Mat Sub Machines Accessed 7 | . 7 . Terminals 5 | . 5 . Fabricators . | . . . Repair Stations 1 | . 1 . Recycling Units 1 | . 1 . Scanalyzers . | . . . Garrison Access . | . . . Total Hacks 18 | . 18 . Successful 7 | . 7 . Failed 10 | . 10 . Catastrophic 2 | . 2 . Database Lockouts 1 | . 1 . Manual 16 | . 16 . Terminals 12 | . 12 . Fabricators . | . . . Repair Stations 4 | . 4 . Recycling Units 2 | . 2 . Scanalyzers . | . . . Garrison Access . | . . . Terminal Hacks 3 | . 3 . Robot Analysis 2 | . 2 . Branch Access Points 1 | . 1 . Fabricator Hacks . | . . . Repair Station Hacks 3 | . 3 . Scan Component 2 | . 2 . Repair 1 | . 1 . Recycling Unit Hacks 1 | . 1 . Retrieve Components 1 | . 1 . Scanalyzer . | . . . Garrison Access Hacks . | . . . Unauthorized Hacks . | . . . Terminals . | . . . Fabricators . | . . . Repair Stations . | . . . Recycling Units . | . . . Scanalyzers . | . . . Garrison Access . | . . . Data Cores Recovered 1 | . 1 . Used . | . . . Hacking Detections 6 | . 6 . Full Trace Events 1 | . 1 . Feedback Events . | . . . Feedback Blocked . | . . . Robot Schematics Acquired . | . . . Robots Built . | . . . Authchips . | . . . Time . | . . . Total Robot Build Rating . | . . . Part Schematics Acquired . | . . . Parts Built . | . . . Authchips . | . . . Time . | . . . Total Part Build Rating . | . . . Parts Repaired 1 | . 1 . Time 26 | . 26 . Parts Recycled . | . . . Recycled Matter . | . . . Retrieved Matter . | . . . Retrieved Components 10 | . 10 . Parts Scanalyzed . | . . . Part Schematics Acquired . | . . . Parts Damaged . | . . . Bothacking | -11 -10 -10 ------------ Run | Jun Mat Sub Used RIF Installer . | . . . Robots Hacked . | . . . Non-combat . | . . . Combat . | . . . Robot Hacks Applied . | . . . Relay Couplers Released . | . . . Fabnet Peak Effective % . | . . . Robots Rewired . | . . . Allies Hacked . | . . . Hacks Repelled . | . . . Allies | -11 -10 -10 -------- Run | Jun Mat Sub Total Allies . | . . . Largest Group . | . . . Highest-Rated Group . | . . . Highest-Rated Ally . | . . . Total Orders . | . . . Ally Attacks . | . . . Total Damage . | . . . Kills . | . . . Allies Corrupted . | . . . Allies Melted . | . . . Intel | -11 -10 -10 ------- Run | Jun Mat Sub Robot Analysis Total 2 | . 2 . Derelict Logs Recovered . | . . . Drone Launches . | . . . Drone Recoveries . | . . . Exploration | -11 -10 -10 ------------- Run | Jun Mat Sub Turns Passed 2057 | 77 1405 575 Spaces Moved 1088 | 30 764 294 Core . | . . . Treads 569 | . 275 294 Legs 519 | 30 489 . Wheels . | . . . Hover . | . . . Flight . | . . . Fastest Speed 120 | 120 120 160 Average Speed 141 | 120 134 161 Slowest Speed 240 | 120 160 240 Overloaded Moves . | . . . Propulsion Burnouts . | . . . Robots Hopped . | . . . Cave-ins Triggered . | . . . Exploration Rate (%) 39 | 2 95 20 Regions Visited 2 Branch Regions 1 Pre-discovered Areas . | . . . Known Exits Taken 1 | . 1 . Unknown Exits Taken 1 | 1 . . Scrap Searched . | . . . Spaces Dug . | . . . Terrain Destroyed . | . . . Melee . | . . . Projectile . | . . . AOE . | . . . Terrain Rammed . | . . . Walls Destroyed . | . . . Machines Disabled . | . . . Actions | -11 -10 -10 --------- Run | Jun Mat Sub Total 1359 | 54 959 346 Wait 53 | 14 29 10 Move 1086 | 29 763 294 Hop . | . . . Pick Up 20 | 2 16 2 Fast Attach 5 | 1 2 2 Attach 9 | . 7 2 Detach 1 | . . 1 Swap 9 | . 8 1 Drop 19 | . 18 1 Fire 157 | 8 116 33 Melee . | . . . Ram . | . . . Kick . | . . . Crush . | . . . Escape Stasis . | . . . Rewire . | . . . Trap . | . . . Miscellaneous . | . . . Route ------- -11/Junkyard -10/Materials (discovered 6 exits: *Mat x3 / *Min x2 / *Sub) -10/Subcaves History --------- Turn | Location | Event 8 | -11/Junkyard | Discovered new exit (range 3) 78 | -11/Junkyard | Entered Materials 246 | -10/Materials | Repaired Assault Rifle 301 | -10/Materials | Build established: Mutant 305 | -10/Materials | Discovered new exit (range 5) 309 | -10/Materials | Discovered new exit (range 10) 654 | -10/Materials | Discovered new exit (range 16) 891 | -10/Materials | Discovered new exit (range 15) 918 | -10/Materials | Identified exit to Mines 963 | -10/Materials | Discovered new exit (range 4) 975 | -10/Materials | Identified exit to Materials 996 | -10/Materials | Central database locked down 1117 | -10/Materials | Identified exit to Subcaves 1140 | -10/Materials | Discovered exit to Materials (range 16) 1483 | -10/Materials | Entered Subcaves 1825 | -10/Subcaves | A swath of the cavern ceiling suddenly collapsed 1915 | -10/Subcaves | Core integrity fell below 50% 2031 | -10/Subcaves | Core integrity fell below 20% 2058 | -10/Subcaves | Destroyed by 0W-YHQ(R) with Subdweller Laser Last Messages --------------- 01907_ Y-45 Defender suffers critical hit (Destroy). 01909_ YM-H29(h) destroyed. 01917_ Mining Laser destroyed. 01934_ Y-45 Defender destroyed. 01941_ G-34 Mercenary suffers critical hit (Destroy). 01941_ Destroyed Ion Engine. 01943_ G-34 Mercenary destroyed. 01945_ Imp. Ion Engine fries itself beyond repair. 01946_ Heat Sink fries itself beyond repair. 01946_ Lgt. Treads fries itself beyond repair. 01947_ Acquired 40 matter. 01949_ Aluminum Leg fries itself beyond repair. 01952_ Acquired Battle Rifle. 01955_ Sml. Laser fries itself beyond repair. 01965_ Acquired 3 matter. 01977_ Acquired 7 matter. 01982_ Acquired Armor Integrity Analyzer. 02028_ Lgt. Treads destroyed. 02034_ 0P-VJB(R) destroyed. 02044_ Acquired 1 matter. Map ----- +----------------------------------------------------+ | ????????????????????????????# #???????????? | | ????????????????????????????## #???????????? | | ?????????????????????????????## ####???????????? | | ??????????????????????????????## #?????????????? | | ???????????????????????????????#" #?????????????? | | ???????????????????????????????## #?????????????? | | ????????????????????????????????# ##????????????? | | ???????????????????????????????## % #????????????? | | ????????????????????######?????# % #????????????? | | ????????????????????# ###??### ##???????????? | | ????????????????????# ##### #???????????? | | ???????#####????##### ### #???????????? | | ??###### ###### # #???????????? | | ### ## # ## #???????????? | | # #??# # ## ##???????????? | | #### ######????????????? | | #### # ## #????????????????? | | # #??## ####### #?????????????????? | | # ###???###?###?## # #?????????????????? | | ####????????# ### # #?????????????????? | | # ????????# % # ??#?????????????? | | ???????# "" ; #;; #?????????????? | | ??????# %"""" " " "## #????????????? | | ?????#### """" """" """""#????????????? | | # ???????# """" """" """" #????????????? | | ? ???????# " ###@ """"""""##????????????? | | ? ???# ##?# " """???????????????? | | ? ###?? ##??" "" ???????????????? | | ? ##?????? ##??? "" #??????????????? | | ? ##?????? ####???## R ##??????????????? | | ? ##??????####????????##### #???????????????? | | ?###?????????????????????????# ??????????????? | | ?????????????????????????????? ## ?????????????? | | ??????????????????????????????? ##???????????????? | | ????????????????????????????????#????????????????? | | ?????????????????????????????????????????????????? | | ?????????????????????????????????????????????????? | | ?????????????????????????????????????????????????? | | ?????????????????????????????????????????????????? | | ?????????????????????????????????????????????????? | | ?????????????????????????????????????????????????? | | ?????????????????????????????????????????????????? | | ?????????????????????????????????????????????????? | | ?????????????????????????????????????????????????? | | ?????????????????????????????????????????????????? | | ?????????????????????????????????????????????????? | | ?????????????????????????????????????????????????? | | ?????????????????????????????????????????????????? | | ?????????????????????????????????????????????????? | | ?????????????????????????????????????????????????? | +----------------------------------------------------+ Best States ------------- Heat Dissipation 25 Energy Generation 10 Energy Capacity 250 Matter Stores 300 Matter Capacity 300 Sight Range 16 Terrain Scan Density 10 Evasion (%) 55 Targeting Accuracy 5 Recoil Reduction 2 Item Schematics ----------------- None Robot Schematics ------------------ None Fabricated ------------ Nothing Alien Tech Used ----------------- None Achievements -------------- None Challenges ------------ None Game ------ Seed SapperNetworkCannon Manual? 0 Play Time 00:23:01 Cumulative 65.8 hours Start 2023.08.15 @ 06:51:35 End 2023.08.15 @ 07:14:07 Sessions 1 Manual Loads 0 Difficulty Rogue Special Mode None Game No. 34 Rogue 34 Adventurer 0 Explorer 0 Win Type - Total 0 Types 0/0/0/0/0/0/0/0/0 Lore% 34 Gallery% 34 Achievement% 35 Wizard Run 0 Options --------- ASCII 0 Keyboard 0 Movement Mouse Keybinds 0 Fullscreen 1 Font 16/SmallcapsGlow Map View 82x54 Tactical HUD 1 Map Filters NONE Filters NONE Steam 1 RUN: 87b26202-9846-4618-a7fc-8c4490a07052